fUSD/lending_fUSD_20250212
["ID","MTS","AMOUNT","RATE_DAILY","PERIOD"]
[352831933,1739353859608,-504.3555483,0.00016575,2]
[352831934,1739353859619,-502.13120331,0.00016575,2]
[352831935,1739353859629,-500.0,0.00016575,2]
[352831936,1739353859639,-500.0,0.00016575,2]
[352831937,1739353859649,-554.20812699,0.00016575,2]
[352831938,1739353859659,-430.3898603,0.00016575,2]
[352831939,1739353859668,-500.0,0.00016575,2]
[352831940,1739353859678,-500.0,0.00016575,2]
[352831941,1739353859687,-500.0,0.00016575,2]
[352831942,1739353859697,-500.0,0.00016575,2]
[352831943,1739353859707,-648.14177578,0.00016575,2]
[352831944,1739353859719,-500.0,0.00016575,2]
[352831945,1739353859728,-500.0,0.00016575,2]
[352831946,1739353859738,-501.19595341,0.00016575,2]
[352831947,1739353859748,-500.0,0.00016575,2]
[352831948,1739353859758,-500.0,0.00016575,2]
[352831949,1739353859768,-501.81737913,0.00016575,2]
[352831950,1739353859778,-500.0,0.00016575,2]
[352831951,1739353859789,-500.0,0.00016575,2]
[352831952,1739353859799,-501.95063907,0.00016575,2]
[352831953,1739353859808,-500.0,0.00016575,2]
[352831954,1739353859818,-500.0,0.00016575,2]
[352831955,1739353859827,-500.0,0.00016575,2]
[352831956,1739353859837,-500.0,0.00016575,2]
[352831957,1739353859846,-500.0,0.00016575,2]
[352831958,1739353859855,-510.24405558,0.00016575,2]
[352831959,1739353859865,-500.48303569,0.00016575,2]
[352831960,1739353859874,-500.0,0.00016575,2]
[352831961,1739353859884,-511.78933307,0.00016575,2]
[352831962,1739353859893,-500.0,0.00016575,2]
[352831963,1739353859902,-500.0,0.00016575,2]
[352831964,1739353859916,-500.0,0.00016575,2]
[352831965,1739353859927,-500.0,0.00016575,2]
[352831966,1739353859938,-360.91261855,0.00016575,2]
[352831967,1739353859948,-500.0,0.00016575,2]
[352831968,1739353859958,-500.0,0.00016575,2]
[352831969,1739353859968,-500.0,0.00016575,2]
[352831970,1739353859977,-500.0,0.00016575,2]
[352831971,1739353859987,-510.09819589,0.00016575,2]
[352831972,1739353859996,-500.0,0.00016575,2]
[352831973,1739353860006,-503.12640342,0.00016575,2]
[352831974,1739353860016,-513.07174775,0.00016575,2]
[352831975,1739353860025,-500.0,0.00016575,2]
[352831976,1739353860034,-500.0,0.00016575,2]
[352831977,1739353860044,-500.0,0.00016575,2]
[352831978,1739353860054,-266.36888349,0.00016575,2]
[352831979,1739353860063,-500.0,0.00016575,2]
[352831980,1739353860074,-509.94408131,0.00016575,2]
[352831981,1739353860084,-505.48037317,0.00016575,2]
[352831982,1739353860094,-500.0,0.00016575,2]
[352831983,1739353860103,-500.0,0.00016575,2]
[352831984,1739353860113,-500.0,0.00016575,2]
[352831985,1739353860122,-500.0,0.00016575,2]
[352831986,1739353860133,-500.0,0.00016575,2]
[352831987,1739353860142,-503.15927583,0.00016575,2]
[352831988,1739353860152,-500.0,0.00016575,2]
[352831989,1739353860162,-500.0,0.00016575,2]
[352831990,1739353860172,-632.07,0.00016575,2]
[352831991,1739353860182,-628.15,0.00016575,2]
[352831992,1739353860192,-500.0,0.00016575,2]
[352831993,1739353860202,-500.0,0.00016575,2]
[352831994,1739353860212,-500.0,0.00016575,2]
[352831995,1739353860223,-347.71482764,0.00016575,2]
[352831996,1739353860233,-500.0,0.00016575,2]
[352831997,1739353860244,-500.0,0.00016575,2]
[352831998,1739353860254,-500.0,0.00016575,2]
[352831999,1739353860264,-500.0,0.00016575,2]
[352832000,1739353860274,-500.0,0.00016575,2]
[352832001,1739353860283,-500.0,0.00016575,2]
[352832002,1739353860293,-500.0,0.00016575,2]
[352832003,1739353860303,-503.74468043,0.00016575,2]
[352832004,1739353860313,-500.0,0.00016575,2]
[352832005,1739353860327,-500.0,0.00016575,2]
[352832006,1739353860337,-500.0,0.00016575,2]
[352832007,1739353860346,-571.09,0.00016575,2]
[352832008,1739353860356,-500.0,0.00016575,2]
[352832009,1739353860367,-500.0,0.00016575,2]
[352832010,1739353860376,-500.0,0.00016575,2]
[352832011,1739353860386,-500.0,0.00016575,2]
[352832012,1739353860397,-506.69938352,0.00016575,2]
[352832013,1739353860407,-500.0,0.00016575,2]
[352832014,1739353860416,-516.6887219,0.00016575,2]
[352832015,1739353860426,-500.0,0.00016575,2]
[352832016,1739353860436,-621.96168493,0.00016575,2]
[352832017,1739353860447,-500.0,0.00016575,2]
[352832018,1739353860457,-502.63098618,0.00016575,2]
[352832019,1739353860467,-500.0,0.00016575,2]
[352832020,1739353860476,-500.0,0.00016575,2]
[352832021,1739353860487,-500.0,0.00016575,2]
[352832022,1739353860497,-500.0,0.00016575,2]
[352832023,1739353860507,-504.8669374,0.00016575,2]
[352832024,1739353860517,-500.0,0.00016575,2]
[352832025,1739353860526,-500.0,0.00016575,2]
[352832026,1739353860536,-284.27184214,0.00016575,2]
[352832027,1739353860546,-509.51704741,0.00016575,2]
[352832028,1739353860556,-500.0,0.00016575,2]
[352832029,1739353860566,-500.0,0.00016575,2]
[352832030,1739353860576,-500.0,0.00016575,2]
[352832031,1739353860587,-500.0,0.00016575,2]
[352832032,1739353860596,-500.0,0.00016575,2]
[352832033,1739353860606,-500.0,0.00016575,2]
[352832034,1739353860616,-500.0,0.00016575,2]
[352832035,1739353860738,-500.0,0.00016575,2]
[352832036,1739353860749,-586.73,0.00016575,2]
[352832037,1739353860759,-500.0,0.00016575,2]
[352832038,1739353860769,-500.0,0.00016575,2]
[352832039,1739353860779,-500.0,0.00016575,2]
[352832040,1739353860788,-500.0,0.00016575,2]
[352832041,1739353860798,-500.0,0.00016575,2]
[352832042,1739353860807,-520.83,0.00016575,2]
[352832043,1739353860817,-500.0,0.00016575,2]
[352832044,1739353860827,-494.65904623,0.00016575,2]
[352832045,1739353860836,-500.0,0.00016575,2]
[352832046,1739353860846,-500.0,0.00016575,2]
[352832047,1739353860856,-500.0,0.00016575,2]
[352832048,1739353860865,-506.85837765,0.00016575,2]
[352832049,1739353860876,-500.0,0.00016575,2]
[352832050,1739353860888,-505.09393499,0.00016575,2]
[352832051,1739353860898,-632.93,0.00016575,2]
[352832052,1739353860907,-500.0,0.00016575,2]
[352832053,1739353860917,-500.0,0.00016575,2]
[352832054,1739353860927,-500.0,0.00016575,2]
[352832055,1739353860937,-500.0,0.00016575,2]
[352832056,1739353860946,-500.0,0.00016575,2]
[352832057,1739353860955,-500.0,0.00016575,2]
[352832058,1739353860965,-500.0,0.00016575,2]
[352832059,1739353860975,-500.0,0.00016575,2]
[352832060,1739353860985,-504.83120112,0.00016575,2]
[352832061,1739353860994,-500.0,0.00016575,2]
[352832062,1739353861003,-500.0,0.00016575,2]
[352832063,1739353861012,-500.0,0.00016575,2]
[352832064,1739353861022,-500.0,0.00016575,2]
[352832065,1739353861031,-500.0,0.00016575,2]
[352832066,1739353861042,-500.0,0.00016575,2]
[352832067,1739353861052,-500.0,0.00016575,2]
[352832068,1739353861062,-500.0,0.00016575,2]
[352832069,1739353861073,-500.0,0.00016575,2]
[352832070,1739353861083,-500.0,0.00016575,2]
[352832071,1739353861093,-500.0,0.00016575,2]
[352832072,1739353861102,-427.11513082,0.00016575,2]
[352832073,1739353861111,-500.0,0.00016575,2]
[352832074,1739353861122,-500.0,0.00016575,2]
[352832075,1739353861132,-517.2130639,0.00016575,2]
[352832076,1739353861142,-500.0,0.00016575,2]
[352832077,1739353861152,-433.10247876,0.00016575,2]
[352832078,1739353861162,-500.0,0.00016575,2]
[352832079,1739353861172,-504.7534085,0.00016575,2]
[352832080,1739353861181,-500.0,0.00016575,2]
[352832081,1739353861191,-500.0,0.00016575,2]
[352832082,1739353861201,-500.0,0.00016575,2]
[352832083,1739353861211,-525.31,0.00016575,2]
[352832084,1739353861221,-514.00033071,0.00016575,2]
[352832085,1739353861231,-2037.7,0.00016575,2]
[352832086,1739353861240,-505.48807296,0.00016575,2]
[352832087,1739353861250,-500.0,0.00016575,2]
[352832088,1739353861259,-500.0,0.00016575,2]
[352832089,1739353861269,-500.0,0.00016575,2]
[352832090,1739353861278,-500.0,0.00016575,2]
[352832091,1739353861288,-504.32467854,0.00016575,2]
[352832092,1739353861298,-500.0,0.00016575,2]
[352832093,1739353861309,-500.0,0.00016575,2]
[352832094,1739353861320,-504.01441898,0.00016575,2]
[352832095,1739353861330,-500.0,0.00016575,2]
[352832096,1739353861340,-564.87,0.00016575,2]
[352832097,1739353861350,-500.0,0.00016575,2]
[352832098,1739353861361,-500.0,0.00016575,2]
[352832099,1739353861370,-500.0,0.00016575,2]
[352832100,1739353861381,-641.18363023,0.00016575,2]
[352832101,1739353861399,-500.0,0.00016575,2]
[352832102,1739353861424,-508.41265051,0.00016575,2]
[352832103,1739353861444,-500.0,0.00016575,2]
[352832104,1739353861467,-500.0,0.00016575,2]
[352832105,1739353861489,-500.0,0.00016575,2]
[352832106,1739353861506,-500.0,0.00016575,2]
[352832107,1739353861526,-500.0,0.00016575,2]
[352832108,1739353861549,-500.0,0.00016575,2]
[352832109,1739353861572,-508.43554351,0.00016575,2]
[352832110,1739353861592,-500.0,0.00016575,2]
[352832111,1739353861613,-500.0,0.00016575,2]
[352832112,1739353861634,-500.0,0.00016575,2]
[352832113,1739353861651,-872.5,0.00016575,2]
[352832114,1739353861670,-500.0,0.00016575,2]
[352832115,1739353861686,-500.0,0.00016575,2]
[352832116,1739353861704,-503.47274833,0.00016575,2]
[352832117,1739353861721,-500.0,0.00016575,2]
[352832118,1739353861738,-500.0,0.00016575,2]
[352832119,1739353861753,-500.0,0.00016575,2]
[352832120,1739353861770,-500.0,0.00016575,2]
[352832121,1739353861787,-500.0,0.00016575,2]
[352832122,1739353861803,-500.0,0.00016575,2]
[352832123,1739353861820,-500.0,0.00016575,2]
[352832124,1739353861837,-500.0,0.00016575,2]
[352832125,1739353861852,-500.0,0.00016575,2]
[352832126,1739353861869,-500.0,0.00016575,2]
[352832127,1739353861887,-500.0,0.00016575,2]
[352832128,1739353861904,-500.0,0.00016575,2]
[352832129,1739353861921,-500.0,0.00016575,2]
[352832130,1739353861938,-500.0,0.00016575,2]
[352832131,1739353861954,-508.2170433,0.00016575,2]
[352832132,1739353861971,-504.58275161,0.00016575,2]
[352832133,1739353861987,-500.0,0.00016575,2]
[352832134,1739353862003,-512.25187023,0.00016575,2]
[352832135,1739353862020,-500.0,0.00016575,2]
[352832136,1739353862037,-500.0,0.00016575,2]
[352832137,1739353862053,-506.79196433,0.00016575,2]
[352832138,1739353862069,-606.21,0.00016575,2]
[352832139,1739353862090,-500.0,0.00016575,2]
[352832140,1739353862107,-500.0,0.00016575,2]
[352832141,1739353862124,-506.38169781,0.00016575,2]
[352832142,1739353862142,-604.18,0.00016575,2]
[352832143,1739353862159,-500.0,0.00016575,2]
[352832144,1739353862179,-511.07333054,0.00016575,2]
[352832145,1739353862196,-500.0,0.00016575,2]
[352832146,1739353862212,-500.0,0.00016575,2]
[352832147,1739353862229,-500.0,0.00016575,2]
[352832148,1739353862245,-154.56198511,0.00016575,2]
[352832149,1739353862262,-500.0,0.00016575,2]
[352832150,1739353862280,-607.52,0.00016575,2]
[352832151,1739353862297,-500.0,0.00016575,2]
[352832152,1739353862317,-500.0,0.00016575,2]
[352832153,1739353862334,-588.36,0.00016575,2]
[352832154,1739353862352,-604.87,0.00016575,2]
[352832155,1739353862370,-500.0,0.00016575,2]
[352832156,1739353862388,-500.0,0.00016575,2]
[352832157,1739353862406,-500.0,0.00016575,2]
[352832158,1739353862424,-500.0,0.00016575,2]
[352832159,1739353862441,-519.7215451,0.00016575,2]
[352832160,1739353862458,-500.0,0.00016575,2]
[352832161,1739353862475,-331.71447619,0.00016575,2]
[352832162,1739353862493,-500.0,0.00016575,2]
[352832163,1739353862510,-500.0,0.00016575,2]
[352832164,1739353862527,-500.0,0.00016575,2]
[352832165,1739353862544,-523.64,0.00016575,2]
[352832166,1739353862561,-500.0,0.00016575,2]
[352832167,1739353862578,-393.33380193,0.00016575,2]
[352832168,1739353862596,-500.0,0.00016575,2]
[352832169,1739353862615,-505.60921073,0.00016575,2]
[352832170,1739353862627,-500.0,0.00016575,2]
[352832171,1739353862834,-500.0,0.00016575,2]
[352832172,1739353862845,-500.0,0.00016575,2]
[352832173,1739353862855,-500.0,0.00016575,2]
[352832174,1739353862865,-731.56,0.00016575,2]
[352832175,1739353862875,-507.10375522,0.00016575,2]
[352832176,1739353862885,-502.91186139,0.00016575,2]
[352832177,1739353862895,-515.84147748,0.00016575,2]
[352832178,1739353862906,-500.0,0.00016575,2]
[352832179,1739353862916,-504.88105118,0.00016575,2]
[352832180,1739353862927,-668.89,0.00016575,2]
[352832181,1739353862937,-500.0,0.00016575,2]
[352832182,1739353862946,-192.29276924,0.00016575,2]
[352832183,1739353862956,-158.80839325,0.00016575,2]
[352832184,1739353862966,-505.5838053,0.00016575,2]
[352832185,1739353862975,-500.0,0.00016575,2]
[352832186,1739353862985,-500.0,0.00016575,2]
[352832187,1739353862995,-500.0,0.00016575,2]
[352832188,1739353863004,-1419.35,0.00016575,2]
[352832189,1739353863014,-500.0,0.00016575,2]
[352832190,1739353863024,-151.0,0.00016575,2]
[352832191,1739353863034,-500.0,0.00016575,2]
[352832192,1739353863043,-500.0,0.00016575,2]
[352832193,1739353863053,-500.0,0.00016575,2]
[352832194,1739353863063,-505.19345099,0.00016575,2]
[352832195,1739353863073,-171.24951294,0.00016575,2]
[352832196,1739353863082,-500.0,0.00016575,2]
[352832197,1739353863092,-500.0,0.00016575,2]
[352832198,1739353863102,-500.0,0.00016575,2]
[352832199,1739353863112,-500.0,0.00016575,2]
[352832200,1739353863122,-500.0,0.00016575,2]
[352832201,1739353863134,-500.0,0.00016575,2]
[352832202,1739353863144,-500.0,0.00016575,2]
[352832203,1739353863154,-500.0,0.00016575,2]
[352832204,1739353863164,-500.0,0.00016575,2]
[352832205,1739353863173,-500.0,0.00016575,2]
[352832206,1739353863183,-500.0,0.00016575,2]
[352832207,1739353863193,-646.31,0.00016575,2]
[352832208,1739353863203,-166.76869256,0.00016575,2]
[352832209,1739353863213,-500.0,0.00016575,2]
[352832210,1739353863222,-513.32,0.00016575,2]
[352832211,1739353863232,-500.0,0.00016575,2]
[352832212,1739353863242,-615.96284212,0.00016575,2]
[352832213,1739353863252,-500.0,0.00016575,2]
[352832214,1739353863262,-500.0,0.00016575,2]
[352832215,1739353863272,-505.68319332,0.00016575,2]
[352832216,1739353863282,-500.0,0.00016575,2]
[352832217,1739353863293,-500.0,0.00016575,2]
[352832218,1739353863303,-256.02817852,0.00016575,2]
[352832219,1739353863317,-500.0,0.00016575,2]
[352832220,1739353863327,-500.0,0.00016575,2]
[352832221,1739353863337,-500.0,0.00016575,2]
[352832222,1739353863347,-508.56098624,0.00016575,2]
[352832223,1739353863358,-500.0,0.00016575,2]
[352832224,1739353863368,-500.0,0.00016575,2]
[352832225,1739353863377,-500.0,0.00016575,2]
[352832226,1739353863389,-500.0,0.00016575,2]
[352832227,1739353863399,-827.83,0.00016575,2]
[352832228,1739353863410,-504.22296796,0.00016575,2]
[352832229,1739353863420,-500.0,0.00016575,2]
[352832230,1739353863430,-500.0,0.00016575,2]
[352832231,1739353863448,-500.0,0.00016575,2]
[352832232,1739353863467,-512.01497658,0.00016575,2]
[352832233,1739353863478,-500.0,0.00016575,2]
[352832234,1739353863489,-707.77,0.00016575,2]
[352832235,1739353863499,-500.0,0.00016575,2]
[352832236,1739353863509,-549.96177967,0.00016575,2]
[352832237,1739353863519,-500.0,0.00016575,2]
[352832238,1739353863529,-500.0,0.00016575,2]
[352832239,1739353863539,-510.72256302,0.00016575,2]
[352832240,1739353863550,-500.0,0.00016575,2]
[352832241,1739353863560,-500.0,0.00016575,2]
[352832242,1739353863569,-500.0,0.00016575,2]
[352832243,1739353863579,-317.63218805,0.00016575,2]
[352832244,1739353863588,-500.0,0.00016575,2]
[352832245,1739353863599,-500.0,0.00016575,2]
[352832246,1739353863609,-500.0,0.00016575,2]
[352832247,1739353863618,-500.0,0.00016575,2]
[352832248,1739353863628,-500.0,0.00016575,2]
[352832249,1739353863639,-676.72,0.00016575,2]
[352832250,1739353863649,-500.0,0.00016575,2]
[352832251,1739353863659,-500.0,0.00016575,2]
[352832252,1739353863669,-500.0,0.00016575,2]
[352832253,1739353863679,-511.35547918,0.00016575,2]
[352832254,1739353863688,-500.0,0.00016575,2]
[352832255,1739353863698,-500.0,0.00016575,2]
[352832256,1739353863707,-514.25058942,0.00016575,2]
[352832257,1739353863718,-500.0,0.00016575,2]
[352832258,1739353863728,-500.0,0.00016575,2]
[352832259,1739353863738,-500.0,0.00016575,2]
[352832260,1739353863747,-583.33,0.00016575,2]
[352832261,1739353863757,-500.0,0.00016575,2]
[352832262,1739353863767,-500.0,0.00016575,2]
[352832263,1739353863776,-508.91637118,0.00016575,2]
[352832264,1739353863786,-731.76,0.00016575,2]
[352832265,1739353863801,-500.0,0.00016575,2]
[352832266,1739353863811,-500.0,0.00016575,2]
[352832267,1739353863821,-500.0,0.00016575,2]
[352832268,1739353863830,-505.77072821,0.00016575,2]
[352832269,1739353863840,-500.0,0.00016575,2]
[352832270,1739353863850,-500.0,0.00016575,2]
[352832271,1739353863861,-500.0,0.00016575,2]
[352832272,1739353863871,-500.0,0.00016575,2]
[352832273,1739353863882,-516.31767245,0.00016575,2]
[352832274,1739353863892,-500.0,0.00016575,2]
[352832275,1739353863904,-500.0,0.00016575,2]
[352832276,1739353863914,-500.0,0.00016575,2]
[352832277,1739353863926,-500.0,0.00016575,2]
[352832278,1739353863936,-819.97,0.00016575,2]
[352832279,1739353863946,-500.0,0.00016575,2]
[352832280,1739353863955,-505.1854297,0.00016575,2]
[352832281,1739353863965,-500.0,0.00016575,2]
[352832282,1739353863975,-500.0,0.00016575,2]
[352832283,1739353863984,-500.0,0.00016575,2]
[352832284,1739353863994,-500.0,0.00016575,2]
[352832285,1739353864004,-505.83479641,0.00016575,2]
[352832286,1739353864014,-500.0,0.00016575,2]
[352832287,1739353864023,-500.0,0.00016575,2]
[352832288,1739353864034,-509.12536963,0.00016575,2]
[352832289,1739353864044,-500.0,0.00016575,2]
[352832290,1739353864054,-500.0,0.00016575,2]
[352832291,1739353864064,-500.0,0.00016575,2]
[352832292,1739353864074,-507.25627415,0.00016575,2]
[352832293,1739353864084,-500.0,0.00016575,2]
[352832294,1739353864094,-500.0,0.00016575,2]
[352832295,1739353864104,-500.0,0.00016575,2]
[352832296,1739353864115,-500.0,0.00016575,2]
[352832297,1739353864124,-500.0,0.00016575,2]
[352832298,1739353864134,-1000.0,0.00016575,2]
[352832299,1739353864145,-500.0,0.00016575,2]
[352832300,1739353864155,-500.0,0.00016575,2]
[352832301,1739353864165,-740.43,0.00016575,2]
[352832302,1739353864175,-500.0,0.00016575,2]
[352832303,1739353864185,-500.0,0.00016575,2]
[352832304,1739353864195,-500.0,0.00016575,2]
[352832305,1739353864204,-500.0,0.00016575,2]
[352832306,1739353864215,-202.62334562,0.00016575,2]
[352832307,1739353864224,-500.0,0.00016575,2]
[352832308,1739353864233,-500.0,0.00016575,2]
[352832309,1739353864243,-500.0,0.00016575,2]
[352832310,1739353864252,-500.0,0.00016575,2]
[352832311,1739353864262,-500.0,0.00016575,2]
[352832312,1739353864272,-500.0,0.00016575,2]
[352832313,1739353864281,-500.0,0.00016575,2]
[352832314,1739353864291,-500.0,0.00016575,2]
[352832315,1739353864300,-575.64,0.00016575,2]
[352832316,1739353864310,-500.0,0.00016624,2]
[352832317,1739353864323,-3355.76867115,0.00016639,2]
[352832318,1739353864332,-216.18738582,0.00016656,2]
[352832319,1739353864342,-479.22,0.00016658,30]
[352832320,1739353864351,-255.51226625,0.00016712,2]
[352832321,1739353864364,-151.0,0.00016712,2]
[352832322,1739353864374,-291.385485,0.00016712,2]
[352832323,1739353864383,-500.0,0.00016712,2]
[352832324,1739353864394,-225.80345038,0.00016712,2]
[352832325,1739353864404,-307.896454,0.00016712,2]
[352832326,1739353864413,-1242.33,0.00016712,2]
[352832327,1739353864425,-500.17132638,0.00016712,2]
[352832328,1739353864435,-500.0,0.00016712,2]
[352832329,1739353864445,-500.0,0.00016712,2]
[352832330,1739353864454,-345.12134605,0.00016712,2]
[352832331,1739353864464,-500.0,0.00016712,2]
[352832332,1739353864474,-500.0,0.00016712,2]
[352832333,1739353864483,-505.3688614,0.00016712,2]
[352832334,1739353864494,-500.0,0.00016712,2]
[352832335,1739353864504,-513.38961086,0.00016712,2]
[352832336,1739353864514,-567.49005579,0.00016712,2]
[352832337,1739353864523,-500.0,0.00016712,2]
[352832338,1739353864533,-500.0,0.00016712,2]
[352832339,1739353864543,-500.0,0.00016712,2]
[352832340,1739353864554,-510.00730927,0.00016712,2]
[352832341,1739353864564,-500.0,0.00016712,2]
[352832342,1739353864574,-515.95606512,0.00016712,2]
[352832343,1739353864583,-500.0,0.00016712,2]
[352832344,1739353864592,-516.70205889,0.00016712,2]
[352832345,1739353864602,-559.83928102,0.00016712,2]
[352832346,1739353864611,-222.70239519,0.00016712,2]
[352832347,1739353864621,-500.0,0.00016712,2]
[352832348,1739353864631,-508.11013316,0.00016712,2]
[352832349,1739353864641,-432.39726871,0.00016712,2]
[352832350,1739353864650,-500.0,0.00016712,2]
[352832351,1739353864664,-500.0,0.00016712,2]
[352832352,1739353864674,-500.0,0.00016712,2]
[352832353,1739353864683,-512.91092649,0.00016712,2]
[352832354,1739353864693,-518.12449602,0.00016712,2]
[352832355,1739353864702,-500.0,0.00016712,2]
[352832356,1739353864712,-500.0,0.00016712,2]
[352832357,1739353864722,-509.933437,0.00016712,2]
[352832358,1739353864731,-500.0,0.00016712,2]
[352832359,1739353864741,-500.0,0.00016712,2]
[352832360,1739353864750,-500.0,0.00016712,2]
[352832361,1739353864760,-508.23309539,0.00016712,2]
[352832362,1739353864769,-500.0,0.00016712,2]
[352832363,1739353864778,-507.01724486,0.00016712,2]
[352832364,1739353864788,-500.0,0.00016712,2]
[352832365,1739353864798,-500.0,0.00016712,2]
[352832366,1739353864807,-500.0,0.00016712,2]
[352832367,1739353864816,-500.0,0.00016712,2]
[352832368,1739353864826,-500.0,0.00016712,2]
[352832369,1739353864836,-500.0,0.00016712,2]
[352832370,1739353864846,-511.24164014,0.00016712,2]
[352832371,1739353864855,-500.0,0.00016712,2]
[352832372,1739353864865,-500.0,0.00016712,2]
[352832373,1739353864874,-500.0,0.00016712,2]
[352832374,1739353864884,-620.2503265,0.00016712,2]
[352832375,1739353864894,-500.0,0.00016712,2]
[352832376,1739353864904,-500.0,0.00016712,2]
[352832377,1739353864913,-500.0,0.00016712,2]
[352832378,1739353865068,-500.0,0.00016712,2]
[352832379,1739353865078,-500.0,0.00016712,2]
[352832380,1739353865088,-500.0,0.00016712,2]
[352832381,1739353865097,-518.34757533,0.00016712,2]
[352832382,1739353865107,-500.0,0.00016712,2]
[352832383,1739353865117,-500.0,0.00016712,2]
[352832384,1739353865126,-500.0,0.00016712,2]
[352832385,1739353865136,-500.0,0.00016712,2]
[352832386,1739353865146,-500.0,0.00016712,2]
[352832387,1739353865155,-500.0,0.00016712,2]
[352832388,1739353865165,-500.0,0.00016712,2]
[352832389,1739353865174,-500.0,0.00016712,2]
[352832390,1739353865183,-525.67835681,0.00016712,2]
[352832391,1739353865193,-500.0,0.00016712,2]
[352832392,1739353865202,-500.0,0.00016712,2]
[352832393,1739353865212,-500.0,0.00016712,2]
[352832394,1739353865222,-500.0,0.00016712,2]
[352832395,1739353865232,-301.90693628,0.00016712,2]
[352832396,1739353865242,-500.0,0.00016712,2]
[352832397,1739353865251,-515.48309183,0.00016712,2]
[352832398,1739353865266,-500.0,0.00016712,2]
[352832399,1739353865277,-500.0,0.00016712,2]
[352832400,1739353865287,-500.0,0.00016712,2]
[352832401,1739353865297,-500.0,0.00016712,2]
[352832402,1739353865312,-500.0,0.00016712,2]
[352832403,1739353865322,-500.0,0.00016712,2]
[352832404,1739353865333,-500.0,0.00016712,2]
[352832405,1739353865343,-500.0,0.00016712,2]
[352832406,1739353865353,-527.02212451,0.00016712,2]
[352832407,1739353865364,-505.08310916,0.00016712,2]
[352832408,1739353865375,-500.0,0.00016712,2]
[352832409,1739353865386,-500.0,0.00016712,2]
[352832410,1739353865397,-505.430384,0.00016712,2]
[352832411,1739353865410,-500.0,0.00016712,2]
[352832412,1739353865421,-624.30525624,0.00016712,2]
[352832413,1739353865431,-511.74719938,0.00016712,2]
[352832414,1739353865441,-500.0,0.00016712,2]
[352832415,1739353865451,-504.70345856,0.00016712,2]
[352832416,1739353865461,-500.0,0.00016712,2]
[352832417,1739353865471,-500.0,0.00016712,2]
[352832418,1739353865482,-507.13909718,0.00016712,2]
[352832419,1739353865492,-500.0,0.00016712,2]
[352832420,1739353865502,-500.0,0.00016712,2]
[352832421,1739353865512,-504.88655881,0.00016712,2]
[352832422,1739353865522,-506.004928,0.00016712,2]
[352832423,1739353865532,-508.08793837,0.00016712,2]
[352832424,1739353865542,-500.0,0.00016712,2]
[352832425,1739353865552,-500.0,0.00016712,2]
[352832426,1739353865561,-500.0,0.00016712,2]
[352832427,1739353865572,-508.91262347,0.00016712,2]
[352832428,1739353865582,-500.0,0.00016712,2]
[352832429,1739353865592,-500.0,0.00016712,2]
[352832430,1739353865601,-173.84366601,0.00016712,2]
[352832431,1739353865610,-500.0,0.00016712,2]
[352832432,1739353865620,-500.0,0.00016712,2]